Cogmind - Beta 14 @@@ ROGUE MODE // 2024.10.01 @ 19:00:45 Player: OATM3AL Result: Destroyed by G-47 Trooper with Particle Gun Performance ------------- Evolutions (1) 500 Regions Visited (5) 1000 Robots Destroyed (9) 45 Value Destroyed (224) 224 Prototype IDs (0) 0 Alien Tech Used (0) 0 Bonus (0) 0 TOTAL SCORE: 1769 Bonus ------- None Cogmind --------- Core Integrity 0/400 Matter 300/300 Energy 100/100 System Corruption 10% Temperature Cool (34) Movement Core (50) Location -8/Mines Parts ------- > --- POWER (1) -------- (None) > --- PROPULSION (4) --- (None) > --- UTILITY (2) ------ (None) > --- WEAPON (2) ------- (None) > --- INVENTORY (5) ---- Visual Processing Unit Signal Interpreter Terrain Scanner Terrain Scan Processor Seismic Detector Peak State ------------ > --- POWER ------------ Ion Engine > --- PROPULSION ------- Aluminum Leg Aluminum Leg Aluminum Leg Aluminum Leg > --- UTILITY ---------- Small Storage Unit Terrain Scanner > --- WEAPON ----------- Beam Rifle Light Assault Rifle > --- INVENTORY -------- Ion Engine Light Ion Engine Visual Processing Unit Signal Interpreter Seismic Detector EM Pulse Gun Heavy EM Pulse Gun Particle Gun [Rating: 11] Favorites ----------- Power Ion Engine Engine Ion Engine Propulsion Aluminum Leg Leg Aluminum Leg Flight Unit Flight Unit Utility Small Storage Unit Device Terrain Scanner Storage Small Storage Unit Weapon Light Assault Rifle Energy Gun Small Laser Ballistic Gun Light Assault Rifle Build | -11 -10 -9 -9 -9 -8 ------- Run | Yrd Mat Mat Min Exi Min Slots Evolved 2 | . . 2 . . . Power . | . . . . . . Propulsion 2 | . . 2 . . . Utility . | . . . . . . Weapon . | . . . . . . Parts Attached 22 | 6 1 10 2 . 3 Power 3 | 1 . 1 1 . . Engine 3 | 1 . 1 1 . . Core . | . . . . . . Reactor . | . . . . . . Propulsion 10 | 2 . 8 . . . Treads . | . . . . . . Leg 4 | 2 . 2 . . . Wheel . | . . . . . . Hover . | . . . . . . Flight 6 | . . 6 . . . Utility 3 | 1 1 . 1 . . Device 2 | . 1 . 1 . . Storage 1 | 1 . . . . . Processor . | . . . . . . Hackware . | . . . . . . Protection . | . . . . . . Artifact . | . . . . . . Weapon 6 | 2 . 1 . . 3 Energy Gun 5 | 1 . 1 . . 3 Energy Cannon . | . . . . . . Ballistic Gun 1 | 1 . . . . . Ballistic Cannon . | . . . . . . Launcher . | . . . . . . Special Weapon . | . . . . . . Impact Weapon . | . . . . . . Slashing Weapon . | . . . . . . Piercing Weapon . | . . . . . . Special Melee Weapon . | . . . . . . Unidentified Prototypes . | . . . . . . Parts Lost 12 | . . 3 . . 9 Power 2 | . . 1 . . 1 Propulsion 5 | . . 2 . . 3 Utility 1 | . . . . . 1 Weapon 4 | . . . . . 4 Highest Loss Streak 7 | . . 2 . . 7 To Critical Strikes . | . . . . . . Average Slot Usage (%) 88 | . 96 97 85 88 40 Engine 11 | . 14 11 8 11 3 Leg 17 | . 28 11 . . . Flight 12 | . . 29 33 33 8 Device 10 | . 11 11 11 11 4 Storage 11 | . 14 11 11 11 5 Energy Gun 12 | . 14 11 11 11 14 Ballistic Gun 11 | . 14 11 11 11 3 Peak Build Rating 11 | 6 8 11 11 11 11 Average Rating 7 | 4 7 10 10 11 6 On Entrance 7 | . 6 8 9 11 11 Naked Turns 2 | . . . . . 2 Heaviest Build 15 | 12 13 15 14 14 14 Greatest Support 40 | 20 20 40 18 14 14 Greatest Overweight (x) 4 | 3 . 4 . . 3 Average Overweight (x) . | . . . . . . Largest Inventory Capacity 8 | 8 8 8 8 8 8 Average Capacity 7 | 7 8 8 8 8 6 Most Carried 8 | 2 8 8 8 7 8 Average Carried 6 | 1 6 7 7 7 6 Final Capacity 8 | 8 8 8 8 8 5 Final Carried 8 | 2 8 8 7 7 5 Class Distribution -------------------- 71% | Mutant 20% | Scavenger-Sprinter 7% | Scavenger-Mutant Dominant Class ---------------- Mutant | -10/Materials Scavenger-Sprinter | -9/Materials Scavenger-Mutant | -9/Mines Scavenger-Mutant | -9/Exiles Mutant | -8/Mines Resources | -11 -10 -9 -9 -9 -8 ----------- Run | Yrd Mat Mat Min Exi Min Matter Collected 451 | 208 78 128 . . 37 Remotely . | . . . . . . Salvage Created 277 | . 118 106 . . 53 Parts 18 | . 6 11 . . 1 Haulers Intercepted . | . . . . . . Recyclers Shooed 1 | . . 1 . . . Parts Field Recycled . | . . . . . . Retrieved Matter . | . . . . . . Parts Self-Destructed . | . . . . . . Prevented . | . . . . . . Kills | -11 -10 -9 -9 -9 -8 ------- Run | Yrd Mat Mat Min Exi Min Combat Hostiles Destroyed 7 | . 2 4 . . 1 Guns 7 | . 2 4 . . 1 Classes Destroyed 5 | . 2 2 . . 1 Watcher 2 | . 1 1 . . . Swarmer 3 | . . 3 . . . Grunt 2 | . 2 . . . . Brawler 1 | . . . . . 1 Sentry 1 | . . 1 . . . Best Kill Streak 4 | . 1 4 . . 1 Combat Bots Only 4 | . 1 4 . . 1 Max Kills in Single Turn 1 | . 1 1 . . 1 Gunslinging . | . . . . . . Exploded . | . . . . . . Melee . | . . . . . . Uniques/NPCs Destroyed . | . . . . . . Combat | -11 -10 -9 -9 -9 -8 -------- Run | Yrd Mat Mat Min Exi Min Hostile Shots Fired 137 | . 19 57 . . 61 Missed 45 | . 4 17 . . 24 Damage Taken 1292 | . 183 449 . . 660 Core 511 | . 102 113 . . 296 Absorbed by Shields . | . . . . . . Core Remaining (%) 79 | 100 59 . . . . Volleys Fired 48 | . 22 20 . . 6 Largest 2 | . 2 2 . . 2 Hottest 130 | . 60 76 . . 130 Shots Fired 95 | . 44 40 . . 11 Gun 95 | . 44 40 . . 11 Cannon . | . . . . . . Launcher . | . . . . . . Special . | . . . . . . Kinetic 45 | . 22 20 . . 3 Thermal 50 | . 22 20 . . 8 Explosive . | . . . . . . Electromagnetic . | . . . . . . Robot Hit Streak 8 | . 8 7 . . 5 Robot Miss Streak 5 | . 2 5 . . 1 Penetration Max . | . . . . . . Secondary Targets 1 | . . . . . 1 Max Gunslinging Chain 1 | . . . . . 1 Shots Hit Robots 63 | . 33 22 . . 8 Core Hits 21 | . 7 9 . . 5 Critical Kills . | . . . . . . Critical Parts Destroyed 1 | . . 1 . . . Critical Strikes 3 | . . 1 . . 2 Burn 2 | . . . . . 2 Destroy 1 | . . 1 . . . Melee Attacks . | . . . . . . Impact . | . . . . . . Slashing . | . . . . . . Piercing . | . . . . . . Sneak Attacks . | . . . . . . Combat Hostiles . | . . . . . . Follow-up Attacks . | . . . . . . Damage Inflicted 665 | . 314 226 . . 125 Guns 648 | . 314 218 . . 116 Cannons . | . . . . . . Explosions . | . . . . . . Melee . | . . . . . . Ramming 17 | . . 8 . . 9 Kinetic 274 | . 148 118 . . 8 Thermal 374 | . 166 100 . . 108 Explosive . | . . . . . . Electromagnetic . | . . . . . . Impact . | . . . . . . Slashing . | . . . . . . Piercing . | . . . . . . Highest Corruption 10 | . 1 . . . 10 Average Corruption 2 | . 1 . . . 9 Corruption Purged . | . . . . . . Corruption Blocked . | . . . . . . Effects 9 | . 6 . . . 3 Message Errors 2 | . 1 . . . 1 Matter Fused 3 | . 3 . . . . Energy Discharges 1 | . 1 . . . . Parts Rejected 1 | . . . . . 1 Parts Fused 1 | . . . . . 1 Data Loss (minor) 1 | . 1 . . . . Overload Shots . | . . . . . . Overflow Damage . | . . . . . . Projectiles . | . . . . . . Explosions . | . . . . . . Melee . | . . . . . . Knockbacks . | . . . . . . Impact . | . . . . . . Kinetic . | . . . . . . Secondary . | . . . . . . Self-Inflicted Damage 6 | . . 3 . . 3 Shots . | . . . . . . Rammed 8 | . . 3 . . 5 Targets Rammed 8 | . . 3 . . 5 Kicked . | . . . . . . Crushed . | . . . . . . Highest Temperature 127 | . 127 81 . . 119 Average Temperature 44 | . 62 28 . . 51 Received Heat Transfer 555 | . 129 156 . . 270 Siege Activations . | . . . . . . Robots Corrupted . | . . . . . . Combat Hostiles . | . . . . . . Parts Fried . | . . . . . . Impact Corruptions . | . . . . . . Robots Melted . | . . . . . . Combat Hostiles . | . . . . . . Parts Melted 2 | . 1 . . . 1 Heat Transferred 1030 | . 375 248 . . 407 Parts Sabotaged . | . . . . . . Parts Stolen . | . . . . . . Parts Stripped . | . . . . . . Power Chain Reactions . | . . . . . . Alert | -11 -10 -9 -9 -9 -8 ------- Run | Yrd Mat Mat Min Exi Min Peak Influence 427 | . 87 427 164 . 110 Initial 164 | . . . 164 . . Average 92 | . 52 194 164 . 42 Maximum Alert Level 2 | . . 2 . . . Low Security (%) 87 | 100 100 58 100 . 100 Level 1 11 | . . 37 . . . Level 2 1 | . . 4 . . . Level 3 . | . . . . . . Level 4 . | . . . . . . Level 5 . | . . . . . . High Security . | . . . . . . Max Security . | . . . . . . Squads Dispatched 3 | . . 3 . . . Investigation 1 | . . 1 . . . Extermination . | . . . . . . Reinforcement 2 | . . 2 . . . Assault . | . . . . . . Garrison . | . . . . . . Intercept . | . . . . . . Searches Triggered . | . . . . . . Construction Impeded . | . . . . . . Haulers Reinforced . | . . . . . . Active Scanning Responses . | . . . . . . Cargo Convoy Interrupts . | . . . . . . Stealth | -11 -10 -9 -9 -9 -8 --------- Run | Yrd Mat Mat Min Exi Min Distress Signals 3 | . 1 2 . . . Communications Jammed . | . . . . . . Distress Signals . | . . . . . . Times Spotted 55 | . 6 36 . . 13 Peak Tracking Total 14 | . 3 14 . . 7 Tactical Retreats 9 | . . 7 . . 2 Traps | -11 -10 -9 -9 -9 -8 ------- Run | Yrd Mat Mat Min Exi Min Traps Triggered . | . . . . . . Indirectly . | . . . . . . Trap Hack Attempts . | . . . . . . Triggered . | . . . . . . Disarmed . | . . . . . . Reprogrammed . | . . . . . . Reused . | . . . . . . Traps Extracted . | . . . . . . Installed . | . . . . . . Triggered . | . . . . . . Machines | -11 -10 -9 -9 -9 -8 ---------- Run | Yrd Mat Mat Min Exi Min Machines Disabled . | . . . . . . Max in Single Turn . | . . . . . . Machines Repaired . | . . . . . . Machines Dismantled . | . . . . . . Machines Sabotaged . | . . . . . . Overloaded Fab Kills . | . . . . . . Hacking | -11 -10 -9 -9 -9 -8 --------- Run | Yrd Mat Mat Min Exi Min Machines Accessed 3 | . 2 1 . . . Terminals 3 | . 2 1 . . . Fabricators . | . . . . . . Repair Stations . | . . . . . . Recycling Units . | . . . . . . Scanalyzers . | . . . . . . Garrison Access . | . . . . . . Total Hacks 12 | . 7 5 . . . Successful 1 | . 1 . . . . Failed 11 | . 6 5 . . . Catastrophic 1 | . 1 . . . . Database Lockouts . | . . . . . . Manual . | . . . . . . Terminals 12 | . 7 5 . . . Fabricators . | . . . . . . Repair Stations . | . . . . . . Recycling Units . | . . . . . . Scanalyzers . | . . . . . . Garrison Access . | . . . . . . Terminal Hacks 1 | . 1 . . . . Zone Layout 1 | . 1 . . . . Fabricator Hacks . | . . . . . . Repair Station Hacks . | . . . . . . Recycling Unit Hacks . | . . . . . . Scanalyzer . | . . . . . . Garrison Access Hacks . | . . . . . . Unauthorized Hacks . | . . . . . . Terminals . | . . . . . . Fabricators . | . . . . . . Repair Stations . | . . . . . . Recycling Units . | . . . . . . Scanalyzers . | . . . . . . Garrison Access . | . . . . . . Data Cores Recovered . | . . . . . . Used . | . . . . . . Hacking Detections 3 | . 2 1 . . . Full Trace Events 2 | . 1 1 . . . Feedback Events 1 | . 1 . . . . Corruption 1 | . 1 . . . . Feedback Blocked . | . . . . . . Robot Schematics Acquired . | . . . . . . Robots Built . | . . . . . . Authchips . | . . . . . . Time . | . . . . . . Total Robot Build Rating . | . . . . . . Part Schematics Acquired . | . . . . . . Parts Built . | . . . . . . Authchips . | . . . . . . Time . | . . . . . . Total Part Build Rating . | . . . . . . Parts Repaired . | . . . . . . Time . | . . . . . . Parts Recycled . | . . . . . . Recycled Matter . | . . . . . . Retrieved Matter . | . . . . . . Retrieved Components . | . . . . . . Parts Scanalyzed . | . . . . . . Part Schematics Acquired . | . . . . . . Parts Damaged . | . . . . . . Bothacking | -11 -10 -9 -9 -9 -8 ------------ Run | Yrd Mat Mat Min Exi Min Used RIF Installer . | . . . . . . Robots Hacked . | . . . . . . Non-combat . | . . . . . . Combat . | . . . . . . Robot Hacks Applied . | . . . . . . Relay Couplers Released . | . . . . . . Fabnet Peak Effective % . | . . . . . . Robots Rewired . | . . . . . . Allies Hacked . | . . . . . . Hacks Repelled . | . . . . . . Allies | -11 -10 -9 -9 -9 -8 -------- Run | Yrd Mat Mat Min Exi Min Total Allies . | . . . . . . Largest Group . | . . . . . . Highest-Rated Group . | . . . . . . Highest-Rated Ally . | . . . . . . Total Orders . | . . . . . . Ally Attacks . | . . . . . . Total Damage . | . . . . . . Kills . | . . . . . . Allies Corrupted . | . . . . . . Allies Melted . | . . . . . . Intel | -11 -10 -9 -9 -9 -8 ------- Run | Yrd Mat Mat Min Exi Min Robot Analysis Total . | . . . . . . Derelict Logs Recovered 1 | . . . 1 . . Drone Launches . | . . . . . . Drone Recoveries . | . . . . . . Exploration | -11 -10 -9 -9 -9 -8 ------------- Run | Yrd Mat Mat Min Exi Min Turns Passed 1169 | 99 522 343 39 16 150 Spaces Moved 1394 | 65 360 639 88 44 198 Core 95 | 21 . 2 . . 72 Treads . | . . . . . . Legs 450 | 44 360 46 . . . Wheels . | . . . . . . Hover . | . . . . . . Flight 849 | . . 591 88 44 126 Fastest Speed 31 | 50 120 31 34 37 37 Average Speed 67 | 135 120 40 35 37 58 Slowest Speed 280 | 200 120 280 37 37 200 Overloaded Moves . | . . . . . . Propulsion Burnouts . | . . . . . . Robots Hopped 17 | . . 11 . . 6 Cave-ins Triggered . | . . . . . . Exploration Rate (%) 26 | 4 51 38 14 8 43 Regions Visited 5 Branch Regions 3 Pre-discovered Areas 1 | . . . 1 . . Known Exits Taken . | . . . . . . Unknown Exits Taken 5 | 1 1 1 1 1 . Scrap Searched 1 | . . . . . 1 Spaces Dug . | . . . . . . Terrain Destroyed . | . . . . . . Melee . | . . . . . . Projectile . | . . . . . . AOE . | . . . . . . Terrain Rammed . | . . . . . . Walls Destroyed . | . . . . . . Machines Disabled . | . . . . . . Actions | -11 -10 -9 -9 -9 -8 --------- Run | Yrd Mat Mat Min Exi Min Total 1514 | 72 410 679 94 43 216 Wait 37 | . 20 4 5 . 8 Move 1358 | 64 359 616 87 43 189 Hop 14 | . . 11 . . 3 Pick Up 16 | 2 7 6 . . 1 Fast Attach 12 | 6 1 4 . . 1 Attach 6 | . . 3 1 . 2 Detach . | . . . . . . Swap 4 | . . 3 1 . . Drop 11 | . 1 9 . . 1 Fire 48 | . 22 20 . . 6 Melee . | . . . . . . Ram 8 | . . 3 . . 5 Kick . | . . . . . . Crush . | . . . . . . Escape Stasis . | . . . . . . Rewire . | . . . . . . Trap . | . . . . . . Miscellaneous . | . . . . . . Route ------- -11/Scrapyard -10/Materials -9/Materials -9/Mines -9/Exiles -8/Mines History --------- Turn | Location | Event 33 | -11/Scrapyard | Discovered new exit (range 16) 100 | -11/Scrapyard | Entered Materials 312 | -10/Materials | Build established: Mutant 603 | -10/Materials | Discovered new exit (range 3) 622 | -10/Materials | Entered another Materials area 622 | -9/Materials | Evolved 2 slots: Propulsion x2 958 | -9/Materials | Discovered new exit (range 15) 965 | -9/Materials | Entered Mines 999 | -9/Mines | Assembled infested the area 999 | -9/Mines | Learned location of Storage (-7) 1001 | -9/Mines | Deemed a non-threat by the Exiles lab entrance 1001 | -9/Mines | Discovered new exit (range 5) 1004 | -9/Mines | Entered Exiles 1014 | -9/Exiles | Discovered new exit (range 15) 1020 | -9/Exiles | Entered Mines 1078 | -8/Mines | System corruption reached 10% 1083 | -8/Mines | Core integrity fell below 50% 1119 | -8/Mines | Lost 7 parts (1p3n1u2w) 1155 | -8/Mines | Core integrity fell below 20% 1170 | -8/Mines | Destroyed by G-47 Trooper with Particle Gun Last Messages --------------- Trooper. 01085_ G-47 Trooper suffers critical hit (Burn). 01086_ Acquired 14 matter. 01088_ Weight Redist. System destroyed. 01090_ Dropped Sml. Storage Unit. 01097_ T-07 Excavator is excavating. 01106_ Slammed into U-05 Engineer. 01106_ Destabilizing: Core damaged (-16). 01132_ XR>W2 0BDF=RD,E QSJV 01138_ Drone sends a signal. 01142_ T-07 Excavator is excavating. 01147_ Slammed into T-07 Excavator. 01151_ System corrupted: Particle Gun rejected. 01152_ Acquired Particle Gun. 01152_ Slug penetrates Wall. 01155_ Particle Gun destroyed. 01166_ Core Extractor disabled. 01168_ Particle Gun destroyed. 01169_ Slug penetrates Core Extractor. 01170_ Slammed into G-47 Trooper. Map ----- +----------------------------------------------------+ | ?????#### #??## ##???#???????????????????? | | ????????# #?## ##? #???????????????????? | | ????????#%#?# ## #### ###????????????? | | ????????# ### ????????????? | | ????????# ???????????? | | ????????##### #?????????????? | | ????????????# ### #?????????????? | | ????????????## ##??????????????????????? | | ?????????????# #???????????????????????? | | ?????????????# #???????????????????????? | | ?????????????# #?????????##????????????? | | ????????????## ########## #????????????? | | ??????????### ## #????????????? | | ??????????# #????????????? | | ?????????# ##????????????? | | ????# #?????????????? | | ??? ## #?????????????? | | ??? #### ##????????????? | | ??? #?## #?###????????? | | ??? #### ### #????????? | | ????## #?# % #????????? | | ?????# ##?# #????????? | | ?????# ##???# """h #####????????? | | ?????# #?????## "" gg#????????????? | | ??????# ???????## " gg#????????????? | | ????????## ????????##g@ ##????????????? | | ??????????# ??????????#######?????????????? | | ???????????????????????????????????????????? | | ???????????????????????????????????????????? | | ???????????????????????????????????????????? | | ???????????????????????????????????????????? | | | | | | | | | | | | | | | | | | | | | | | | | | | | | | | | | | | | | | | +----------------------------------------------------+ Best States ------------- Heat Dissipation 28 Energy Generation 10 Energy Capacity 250 Matter Stores 300 Matter Capacity 300 Sight Range 16 Terrain Scan Range 14 Terrain Scan Density 10 Additional Mass Support 6 Evasion (%) 63 Item Schematics ----------------- None Robot Schematics ------------------ None Fabricated ------------ Nothing Alien Tech Used ----------------- None Achievements -------------- None Challenges ------------ None Game ------ Seed ChargeGravityThruster Manual? 0 Play Time 00:32:22 Cumulative 107.3 hours Start 2024.10.01 @ 11:11:44 End 2024.10.01 @ 19:00:45 Sessions 3 Manual Loads 0 Difficulty Rogue Special Mode None Game No. 93 Rogue 93 Adventurer 0 Explorer 0 Win Type - Total 0 Types 0/0/0/0/0/0/0/0/0 Lore% 15 Gallery% 40 Achievement% 25 Wizard Run 0 Options --------- Layout 1 ASCII 0 Keyboard 1 Movement Arrows Keybinds 0 Fullscreen 1 Font 24/Smallcaps Map View 50x35 Zoom Use 0% Tactical HUD 1 Map Filters NONE Filters NONE Steam 1 RUN: 129b9cf4-95da-4f0d-a0de-6391d7d35c72